[Event "Titled Tuesday Blitz April 19 Early 2022"]
[White "Tristan, Leonardo"]
[Black "Kozak, Antoni"]
[WhiteFideId "113816"]
[BlackFideId "21832030"]
[WhiteElo "2404"]
[BlackElo "2236"]
[Result "1-0"]
[Round "11"]
[TimeControl "180+1"]
[Date "2022.04.19"]
[WhiteClock "0:01:51"]
[BlackClock "0:00:05"]

1. d4 {[%clk 0:03:00]}  d5 {[%clk 0:02:58]} 2. Nf3 {[%clk 0:03:01]}  Nf6 {[%clk 0:02:53]} 3. Bf4 {[%clk 0:03:01]}  c5 {[%clk 0:02:53]} 4. e3 {[%clk 0:03:01]}  cxd4 {[%clk 0:02:53]} 5. exd4 {[%clk 0:02:59]}  Nc6 {[%clk 0:02:53]} 6. Nbd2 {[%clk 0:02:59]}  Bg4 {[%clk 0:02:45]} 7. c3 {[%clk 0:02:59]}  e6 {[%clk 0:02:45]} 8. Qb3 {[%clk 0:03:00]}  Qc8 {[%clk 0:02:44]} 9. Bd3 {[%clk 0:02:59]}  Be7 {[%clk 0:02:42]} 10. O-O {[%clk 0:02:59]}  O-O {[%clk 0:02:42]} 11. Rae1 {[%clk 0:02:59]}  Bh5 {[%clk 0:02:39]} 12. Ne5 {[%clk 0:02:59]}  Bd8 {[%clk 0:02:26]} 13. Re3 {[%clk 0:02:55]}  Bc7 {[%clk 0:02:24]} 14. Rh3 {[%clk 0:02:46]}  Bg6 {[%clk 0:02:24]} 15. Nxg6 {[%clk 0:02:46]}  hxg6 {[%clk 0:02:23]} 16. Bg5 {[%clk 0:02:45]}  Nh7 {[%clk 0:01:57]} 17. Nf3 {[%clk 0:02:40]}  Re8 {[%clk 0:01:48]} 18. Qc2 {[%clk 0:02:39]}  Ne7 {[%clk 0:01:42]} 19. Re1 {[%clk 0:02:37]}  Nf5 {[%clk 0:01:37]} 20. g4 {[%clk 0:02:37]}  Nxg5 {[%clk 0:01:35]} 21. Nxg5 {[%clk 0:02:36]}  Nh6 {[%clk 0:01:35]} 22. Bxg6 {[%clk 0:02:34]}  Qd8 {[%clk 0:00:33]} 23. Bxf7+ {[%clk 0:02:06]}  Nxf7 {[%clk 0:00:32]} 24. Rh8+ {[%clk 0:02:06]}  Nxh8 {[%clk 0:00:32]} 25. Qh7+ {[%clk 0:02:06]}  Kf8 {[%clk 0:00:32]} 26. Qxh8+ {[%clk 0:02:07]}  Ke7 {[%clk 0:00:32]} 27. Qxg7+ {[%clk 0:02:07]}  Kd6 {[%clk 0:00:23]} 28. Nf7+ {[%clk 0:02:07]}  Kc6 {[%clk 0:00:23]} 29. Nxd8+ {[%clk 0:02:07]}  Raxd8 {[%clk 0:00:24]} 30. Qf7 {[%clk 0:02:04]}  Kd6 {[%clk 0:00:19]} 31. g5 {[%clk 0:02:01]}  Re7 {[%clk 0:00:20]} 32. Qf6 {[%clk 0:01:58]}  Kd7 {[%clk 0:00:16]} 33. f4 {[%clk 0:01:58]}  Rde8 {[%clk 0:00:14]} 34. g6 {[%clk 0:01:57]}  Bd6 {[%clk 0:00:11]} 35. h4 {[%clk 0:01:56]}  Rg8 {[%clk 0:00:06]} 36. h5 {[%clk 0:01:56]}  Ree8 {[%clk 0:00:07]} 37. f5 {[%clk 0:01:55]}  exf5 {[%clk 0:00:05]} 38. Rxe8 {[%clk 0:01:50]}  Rxe8 {[%clk 0:00:04]} 39. Qxf5+ {[%clk 0:01:50]}  Kc6 {[%clk 0:00:05]} 40. g7 {[%clk 0:01:51]} 1-0


[Site "https://www.chess.com"]

[Event "Titled Tuesday Blitz April 19 Early 2022"]
[White "Trost, Edvin"]
[Black "Csonka, Balazs"]
[WhiteFideId "1729519"]
[BlackFideId "742910"]
[WhiteElo "2556"]
[BlackElo "2667"]
[Result "1-0"]
[Round "11"]
[TimeControl "180+1"]
[Date "2022.04.19"]
[WhiteClock "0:00:50"]
[BlackClock "0:00:02"]

1. d4 {[%clk 0:03:00]}  Nf6 {[%clk 0:02:59]} 2. c4 {[%clk 0:02:59]}  g6 {[%clk 0:02:59]} 3. Nc3 {[%clk 0:02:57]}  d5 {[%clk 0:02:59]} 4. cxd5 {[%clk 0:02:57]}  Nxd5 {[%clk 0:02:59]} 5. e4 {[%clk 0:02:54]}  Nxc3 {[%clk 0:02:59]} 6. bxc3 {[%clk 0:02:54]}  Bg7 {[%clk 0:02:59]} 7. Bc4 {[%clk 0:02:47]}  c5 {[%clk 0:02:58]} 8. Ne2 {[%clk 0:02:48]}  Nc6 {[%clk 0:02:59]} 9. Be3 {[%clk 0:02:48]}  O-O {[%clk 0:02:59]} 10. h4 {[%clk 0:02:48]}  cxd4 {[%clk 0:02:48]} 11. cxd4 {[%clk 0:02:49]}  Qa5+ {[%clk 0:02:47]} 12. Kf1 {[%clk 0:02:44]}  Qa3 {[%clk 0:02:44]} 13. h5 {[%clk 0:02:35]}  Bg4 {[%clk 0:02:42]} 14. hxg6 {[%clk 0:02:29]}  hxg6 {[%clk 0:02:43]} 15. Rb1 {[%clk 0:02:22]}  Rad8 {[%clk 0:02:16]} 16. Rb3 {[%clk 0:02:19]}  Qxa2 {[%clk 0:01:32]} 17. f3 {[%clk 0:02:15]}  Be6 {[%clk 0:01:26]} 18. Bxe6 {[%clk 0:02:04]}  fxe6 {[%clk 0:01:27]} 19. Rd3 {[%clk 0:02:02]}  Qa6 {[%clk 0:01:14]} 20. Kf2 {[%clk 0:02:00]}  Ne5 {[%clk 0:00:56]} 21. Rc3 {[%clk 0:01:53]}  Ng4+ {[%clk 0:00:55]} 22. Kg1 {[%clk 0:01:39]}  Nxe3 {[%clk 0:00:52]} 23. Rxe3 {[%clk 0:01:40]}  Qb6 {[%clk 0:00:40]} 24. e5 {[%clk 0:01:22]}  Rd5 {[%clk 0:00:29]} 25. Qd3 {[%clk 0:01:22]}  Rf5 {[%clk 0:00:20]} 26. Rh4 {[%clk 0:01:15]}  g5 {[%clk 0:00:09]} 27. Rhe4 {[%clk 0:01:13]}  Qd8 {[%clk 0:00:06]} 28. Qc2 {[%clk 0:01:02]}  b5 {[%clk 0:00:05]} 29. Rg4 {[%clk 0:01:02]}  b4 {[%clk 0:00:04]} 30. Ng3 {[%clk 0:01:03]}  Rxd4 {[%clk 0:00:05]} 31. Nxf5 {[%clk 0:01:02]}  Rxg4 {[%clk 0:00:05]} 32. fxg4 {[%clk 0:00:56]}  exf5 {[%clk 0:00:05]} 33. gxf5 {[%clk 0:00:57]}  Qd4 {[%clk 0:00:05]} 34. Qb3+ {[%clk 0:00:57]}  Kh7 {[%clk 0:00:05]} 35. Kf1 {[%clk 0:00:56]}  Bxe5 {[%clk 0:00:05]} 36. Qf7+ {[%clk 0:00:56]}  Bg7 {[%clk 0:00:05]} 37. Rh3+ {[%clk 0:00:54]}  Qh4 {[%clk 0:00:04]} 38. Rxh4+ {[%clk 0:00:54]}  gxh4 {[%clk 0:00:05]} 39. Qh5+ {[%clk 0:00:54]}  Kg8 {[%clk 0:00:05]} 40. Qxh4 {[%clk 0:00:54]}  Kf8 {[%clk 0:00:04]} 41. Qc4 {[%clk 0:00:55]}  Bc3 {[%clk 0:00:04]} 42. g4 {[%clk 0:00:54]}  a5 {[%clk 0:00:05]} 43. Qb3 {[%clk 0:00:54]}  Bf6 {[%clk 0:00:03]} 44. Qa4 {[%clk 0:00:54]}  Kg7 {[%clk 0:00:03]} 45. Qxa5 {[%clk 0:00:55]}  b3 {[%clk 0:00:03]} 46. Qb5 {[%clk 0:00:55]}  b2 {[%clk 0:00:03]} 47. Ke2 {[%clk 0:00:55]}  Kh6 {[%clk 0:00:04]} 48. Kf3 {[%clk 0:00:56]}  Kg5 {[%clk 0:00:04]} 49. Qb3 {[%clk 0:00:56]}  Kh6 {[%clk 0:00:03]} 50. Kf4 {[%clk 0:00:55]}  Bg5+ {[%clk 0:00:03]} 51. Ke5 {[%clk 0:00:55]}  Bf6+ {[%clk 0:00:04]} 52. Ke6 {[%clk 0:00:56]}  Kg5 {[%clk 0:00:04]} 53. Qb4 {[%clk 0:00:56]}  Kh4 {[%clk 0:00:03]} 54. Kd5 {[%clk 0:00:52]}  Kg5 {[%clk 0:00:02]} 55. Kc6 {[%clk 0:00:53]}  Kh4 {[%clk 0:00:02]} 56. Kb5 {[%clk 0:00:53]}  Kg5 {[%clk 0:00:03]} 57. Ka4 {[%clk 0:00:54]}  Kh4 {[%clk 0:00:03]} 58. Ka3 {[%clk 0:00:54]}  e6 {[%clk 0:00:02]} 59. fxe6 {[%clk 0:00:50]}  Be7 {[%clk 0:00:02]} 60. Qxe7+ {[%clk 0:00:50]} 1-0


[Site "https://www.chess.com"]

[Event "Titled Tuesday Blitz April 19 Early 2022"]
[White "Tsyhanchuk, Stanislav"]
[Black "Demchenko, Anton"]
[WhiteFideId "13505130"]
[BlackFideId "4160258"]
[WhiteElo "2078"]
[BlackElo "2539"]
[Result "0-1"]
[Round "11"]
[TimeControl "180+1"]
[Date "2022.04.19"]
[WhiteClock "0:00:06"]
[BlackClock "0:00:26"]

1. d4 {[%clk 0:03:00]}  Nf6 {[%clk 0:02:58]} 2. c4 {[%clk 0:03:01]}  d6 {[%clk 0:02:58]} 3. Nf3 {[%clk 0:03:00]}  Nbd7 {[%clk 0:02:58]} 4. g3 {[%clk 0:03:00]}  g6 {[%clk 0:02:58]} 5. Bg2 {[%clk 0:03:00]}  Bg7 {[%clk 0:02:58]} 6. O-O {[%clk 0:03:01]}  O-O {[%clk 0:02:59]} 7. Nc3 {[%clk 0:03:01]}  e5 {[%clk 0:03:00]} 8. e4 {[%clk 0:03:01]}  exd4 {[%clk 0:03:01]} 9. Nxd4 {[%clk 0:03:02]}  Nc5 {[%clk 0:03:02]} 10. h3 {[%clk 0:03:00]}  Re8 {[%clk 0:03:02]} 11. Re1 {[%clk 0:02:59]}  a5 {[%clk 0:03:02]} 12. Qc2 {[%clk 0:02:55]}  a4 {[%clk 0:03:00]} 13. Be3 {[%clk 0:02:54]}  c6 {[%clk 0:02:59]} 14. Rad1 {[%clk 0:02:53]}  Nfd7 {[%clk 0:02:59]} 15. f4 {[%clk 0:02:50]}  Qa5 {[%clk 0:02:51]} 16. Bf2 {[%clk 0:02:48]}  Nb6 {[%clk 0:02:49]} 17. b3 {[%clk 0:02:45]}  axb3 {[%clk 0:02:50]} 18. axb3 {[%clk 0:02:45]}  Qb4 {[%clk 0:02:50]} 19. Rb1 {[%clk 0:02:35]}  Nbd7 {[%clk 0:02:32]} 20. Na2 {[%clk 0:02:23]}  Qa3 {[%clk 0:02:32]} 21. Nc3 {[%clk 0:02:19]}  Nf8 {[%clk 0:02:24]} 22. b4 {[%clk 0:02:14]}  Nce6 {[%clk 0:02:25]} 23. Red1 {[%clk 0:02:05]}  Nxd4 {[%clk 0:02:17]} 24. Bxd4 {[%clk 0:02:06]}  Bxd4+ {[%clk 0:02:18]} 25. Rxd4 {[%clk 0:02:07]}  Qa7 {[%clk 0:02:18]} 26. Qf2 {[%clk 0:02:02]}  Be6 {[%clk 0:02:06]} 27. b5 {[%clk 0:01:53]}  Qc5 {[%clk 0:02:02]} 28. Bf1 {[%clk 0:01:47]}  Ra3 {[%clk 0:01:59]} 29. Qe3 {[%clk 0:01:20]}  Rea8 {[%clk 0:01:35]} 30. bxc6 {[%clk 0:01:19]}  bxc6 {[%clk 0:01:35]} 31. Kh1 {[%clk 0:01:14]}  Ra1 {[%clk 0:01:25]} 32. f5 {[%clk 0:00:47]}  Bc8 {[%clk 0:01:08]} 33. fxg6 {[%clk 0:00:44]}  hxg6 {[%clk 0:01:07]} 34. Rd3 {[%clk 0:00:35]}  Rxb1 {[%clk 0:01:01]} 35. Nxb1 {[%clk 0:00:33]}  Qxc4 {[%clk 0:00:57]} 36. Rd1 {[%clk 0:00:29]}  Qe6 {[%clk 0:00:52]} 37. Nd2 {[%clk 0:00:22]}  Ba6 {[%clk 0:00:43]} 38. Kg2 {[%clk 0:00:21]}  Bxf1+ {[%clk 0:00:41]} 39. Rxf1 {[%clk 0:00:22]}  Nd7 {[%clk 0:00:41]} 40. Nf3 {[%clk 0:00:19]}  Ra2+ {[%clk 0:00:40]} 41. Rf2 {[%clk 0:00:19]}  Rxf2+ {[%clk 0:00:40]} 42. Kxf2 {[%clk 0:00:17]}  Qxh3 {[%clk 0:00:35]} 43. Qa7 {[%clk 0:00:16]}  Nf6 {[%clk 0:00:31]} 44. Qb8+ {[%clk 0:00:15]}  Kg7 {[%clk 0:00:31]} 45. Ng5 {[%clk 0:00:08]}  Qh2+ {[%clk 0:00:28]} 46. Kf3 {[%clk 0:00:08]}  Qh5+ {[%clk 0:00:25]} 47. Kf4 {[%clk 0:00:06]}  Qg4+ {[%clk 0:00:26]} 0-1


[Site "https://www.chess.com"]

[Event "Titled Tuesday Blitz April 19 Early 2022"]
[White "Vignesh, N R"]
[Black "Hua, Lefong"]
[WhiteFideId "25012215"]
[BlackFideId "2602253"]
[WhiteElo "2734"]
[BlackElo "2595"]
[Result "0-1"]
[Round "11"]
[TimeControl "180+1"]
[Date "2022.04.19"]
[WhiteClock "0:00:20"]
[BlackClock "0:00:12"]

1. b3 {[%clk 0:03:00]}  Nf6 {[%clk 0:02:59]} 2. Bb2 {[%clk 0:03:01]}  g6 {[%clk 0:03:00]} 3. Nf3 {[%clk 0:03:01]}  Bg7 {[%clk 0:03:00]} 4. g3 {[%clk 0:03:01]}  O-O {[%clk 0:03:00]} 5. Bg2 {[%clk 0:03:02]}  c5 {[%clk 0:03:01]} 6. O-O {[%clk 0:03:02]}  Nc6 {[%clk 0:03:01]} 7. c4 {[%clk 0:03:02]}  d6 {[%clk 0:03:01]} 8. d4 {[%clk 0:03:01]}  Ne4 {[%clk 0:03:02]} 9. Nbd2 {[%clk 0:02:47]}  Bf5 {[%clk 0:03:00]} 10. e3 {[%clk 0:02:43]}  Nxd2 {[%clk 0:02:57]} 11. Qxd2 {[%clk 0:02:43]}  Be4 {[%clk 0:02:57]} 12. Rfd1 {[%clk 0:02:38]}  e5 {[%clk 0:02:55]} 13. dxc5 {[%clk 0:02:30]}  dxc5 {[%clk 0:02:53]} 14. Qe2 {[%clk 0:02:30]}  Qe7 {[%clk 0:02:51]} 15. Nd2 {[%clk 0:02:23]}  Bxg2 {[%clk 0:02:46]} 16. Kxg2 {[%clk 0:02:24]}  e4 {[%clk 0:02:39]} 17. Bxg7 {[%clk 0:02:25]}  Kxg7 {[%clk 0:02:40]} 18. h4 {[%clk 0:02:20]}  Rad8 {[%clk 0:02:32]} 19. h5 {[%clk 0:02:19]}  f5 {[%clk 0:02:19]} 20. hxg6 {[%clk 0:02:18]}  hxg6 {[%clk 0:02:19]} 21. Rh1 {[%clk 0:02:11]}  Rh8 {[%clk 0:02:18]} 22. Rxh8 {[%clk 0:02:09]}  Rxh8 {[%clk 0:02:18]} 23. Rd1 {[%clk 0:02:07]}  Rd8 {[%clk 0:02:17]} 24. Nb1 {[%clk 0:02:07]}  Rxd1 {[%clk 0:02:14]} 25. Qxd1 {[%clk 0:02:08]}  Qd8 {[%clk 0:02:12]} 26. Qc2 {[%clk 0:01:56]}  Ne5 {[%clk 0:02:10]} 27. Qc3 {[%clk 0:01:54]}  Qf6 {[%clk 0:02:04]} 28. Qa5 {[%clk 0:01:53]}  Qb6 {[%clk 0:01:49]} 29. Qxb6 {[%clk 0:01:53]}  axb6 {[%clk 0:01:50]} 30. Nc3 {[%clk 0:01:54]}  Kf7 {[%clk 0:01:28]} 31. Nd5 {[%clk 0:01:54]}  Nd7 {[%clk 0:01:29]} 32. g4 {[%clk 0:01:55]}  Ke6 {[%clk 0:01:25]} 33. Kg3 {[%clk 0:01:54]}  Ke5 {[%clk 0:01:23]} 34. g5 {[%clk 0:01:47]}  Kd6 {[%clk 0:01:09]} 35. a4 {[%clk 0:01:37]}  Ke5 {[%clk 0:01:06]} 36. f3 {[%clk 0:01:21]}  exf3 {[%clk 0:01:01]} 37. Kxf3 {[%clk 0:01:22]}  Ke6 {[%clk 0:00:56]} 38. Nf4+ {[%clk 0:01:20]}  Kf7 {[%clk 0:00:55]} 39. e4 {[%clk 0:01:20]}  Ne5+ {[%clk 0:00:50]} 40. Ke3 {[%clk 0:01:18]}  Ng4+ {[%clk 0:00:50]} 41. Ke2 {[%clk 0:01:18]}  fxe4 {[%clk 0:00:48]} 42. Nd5 {[%clk 0:01:18]}  Ne5 {[%clk 0:00:41]} 43. Ke3 {[%clk 0:01:16]}  Nf3 {[%clk 0:00:40]} 44. Nxb6 {[%clk 0:01:10]}  Ke6 {[%clk 0:00:36]} 45. Kxe4 {[%clk 0:00:58]}  Nxg5+ {[%clk 0:00:35]} 46. Kf4 {[%clk 0:00:59]}  Nf7 {[%clk 0:00:30]} 47. Nd5 {[%clk 0:00:58]}  Kd6 {[%clk 0:00:25]} 48. Nc3 {[%clk 0:00:56]}  Kc6 {[%clk 0:00:18]} 49. a5 {[%clk 0:00:51]}  Nd6 {[%clk 0:00:15]} 50. Kg5 {[%clk 0:00:51]}  Nf5 {[%clk 0:00:15]} 51. Kxg6 {[%clk 0:00:25]}  Nd4 {[%clk 0:00:15]} 52. Kg5 {[%clk 0:00:19]}  Nxb3 {[%clk 0:00:16]} 53. a6 {[%clk 0:00:19]}  bxa6 {[%clk 0:00:15]} 54. Kf4 {[%clk 0:00:20]}  Nd2 {[%clk 0:00:15]} 55. Ke3 {[%clk 0:00:20]}  Nxc4+ {[%clk 0:00:15]} 56. Kd3 {[%clk 0:00:21]}  Nb6 {[%clk 0:00:16]} 57. Kc2 {[%clk 0:00:21]}  c4 {[%clk 0:00:15]} 58. Kb2 {[%clk 0:00:21]}  Kc5 {[%clk 0:00:15]} 59. Ka3 {[%clk 0:00:21]}  Nd5 {[%clk 0:00:14]} 60. Ne4+ {[%clk 0:00:21]}  Kb5 {[%clk 0:00:15]} 61. Nd2 {[%clk 0:00:20]}  c3 {[%clk 0:00:14]} 62. Nf3 {[%clk 0:00:20]}  Kc4 {[%clk 0:00:14]} 63. Ne1 {[%clk 0:00:21]}  Nb4 {[%clk 0:00:13]} 64. Ka4 {[%clk 0:00:21]}  c2 {[%clk 0:00:12]} 65. Nxc2 {[%clk 0:00:21]}  Nxc2 {[%clk 0:00:12]} 66. Ka5 {[%clk 0:00:22]}  Nb4 {[%clk 0:00:12]} 67. Ka4 {[%clk 0:00:21]}  Kc5 {[%clk 0:00:11]} 68. Ka5 {[%clk 0:00:21]}  Kc4 {[%clk 0:00:12]} 69. Ka4 {[%clk 0:00:22]}  Kc3 {[%clk 0:00:12]} 70. Ka5 {[%clk 0:00:20]}  Kb3 {[%clk 0:00:12]} 0-1


[Site "https://www.chess.com"]

[Event "Titled Tuesday Blitz April 19 Early 2022"]
[White "Weishaeutel, Moritz"]
[Black "Samant Aditya S"]
[WhiteFideId "12967300"]
[BlackFideId "35080580"]
[WhiteElo "2542"]
[BlackElo "2650"]
[Result "0-1"]
[Round "11"]
[TimeControl "180+1"]
[Date "2022.04.19"]
[WhiteClock "0:00:01"]
[BlackClock "0:00:04"]

1. e4 {[%clk 0:03:00]}  c5 {[%clk 0:03:00]} 2. b4 {[%clk 0:03:01]}  cxb4 {[%clk 0:02:58]} 3. a3 {[%clk 0:03:01]}  bxa3 {[%clk 0:02:52]} 4. d4 {[%clk 0:03:01]}  e6 {[%clk 0:02:45]} 5. Bd3 {[%clk 0:02:53]}  d6 {[%clk 0:02:37]} 6. Nxa3 {[%clk 0:02:51]}  Nf6 {[%clk 0:02:34]} 7. Ne2 {[%clk 0:02:51]}  Be7 {[%clk 0:02:34]} 8. O-O {[%clk 0:02:51]}  O-O {[%clk 0:02:34]} 9. f4 {[%clk 0:02:50]}  Nc6 {[%clk 0:02:29]} 10. c3 {[%clk 0:02:50]}  e5 {[%clk 0:02:18]} 11. fxe5 {[%clk 0:02:50]}  dxe5 {[%clk 0:02:19]} 12. d5 {[%clk 0:02:51]}  Na5 {[%clk 0:02:04]} 13. Nb5 {[%clk 0:02:38]}  b6 {[%clk 0:02:04]} 14. d6 {[%clk 0:02:32]}  Bxd6 {[%clk 0:01:54]} 15. Nxd6 {[%clk 0:02:33]}  Qxd6 {[%clk 0:01:54]} 16. Ba3 {[%clk 0:02:34]}  Qc7 {[%clk 0:01:47]} 17. Bxf8 {[%clk 0:02:35]}  Kxf8 {[%clk 0:01:48]} 18. Ng3 {[%clk 0:02:05]}  Be6 {[%clk 0:01:48]} 19. Rc1 {[%clk 0:01:54]}  Rd8 {[%clk 0:01:45]} 20. Qe2 {[%clk 0:01:51]}  Nb3 {[%clk 0:01:37]} 21. Rcd1 {[%clk 0:01:50]}  Qxc3 {[%clk 0:01:32]} 22. Qc2 {[%clk 0:01:04]}  Qxc2 {[%clk 0:01:01]} 23. Bxc2 {[%clk 0:01:05]}  Rxd1 {[%clk 0:00:57]} 24. Rxd1 {[%clk 0:01:04]}  Nd4 {[%clk 0:00:58]} 25. Bd3 {[%clk 0:01:03]}  Nd7 {[%clk 0:00:57]} 26. Ne2 {[%clk 0:00:54]}  Nxe2+ {[%clk 0:00:40]} 27. Bxe2 {[%clk 0:00:55]}  Ke7 {[%clk 0:00:39]} 28. Ra1 {[%clk 0:00:45]}  a5 {[%clk 0:00:39]} 29. Rb1 {[%clk 0:00:46]}  Kd6 {[%clk 0:00:37]} 30. Kf2 {[%clk 0:00:41]}  Kc7 {[%clk 0:00:33]} 31. Ke3 {[%clk 0:00:41]}  Nc5 {[%clk 0:00:34]} 32. Bb5 {[%clk 0:00:34]}  Bd7 {[%clk 0:00:21]} 33. Bc4 {[%clk 0:00:33]}  f6 {[%clk 0:00:21]} 34. g4 {[%clk 0:00:25]}  Bc6 {[%clk 0:00:21]} 35. Bd5 {[%clk 0:00:17]}  b5 {[%clk 0:00:21]} 36. Rc1 {[%clk 0:00:15]}  Kb6 {[%clk 0:00:22]} 37. Bxc6 {[%clk 0:00:11]}  Kxc6 {[%clk 0:00:23]} 38. h4 {[%clk 0:00:12]}  h6 {[%clk 0:00:21]} 39. g5 {[%clk 0:00:12]}  hxg5 {[%clk 0:00:22]} 40. hxg5 {[%clk 0:00:13]}  fxg5 {[%clk 0:00:22]} 41. Rg1 {[%clk 0:00:12]}  Ne6 {[%clk 0:00:21]} 42. Rc1+ {[%clk 0:00:10]}  Kb6 {[%clk 0:00:20]} 43. Rd1 {[%clk 0:00:11]}  Nd4 {[%clk 0:00:20]} 44. Rg1 {[%clk 0:00:11]}  Ne6 {[%clk 0:00:07]} 45. Rd1 {[%clk 0:00:11]}  Nd4 {[%clk 0:00:07]} 46. Rg1 {[%clk 0:00:11]}  b4 {[%clk 0:00:08]} 47. Kd3 {[%clk 0:00:01]}  Ne6 {[%clk 0:00:04]} 0-1


[Site "https://www.chess.com"]

[Event "Titled Tuesday Blitz April 19 Early 2022"]
[White "Yeletsky, Ivan"]
[Black "Zhurikhin, Alexander"]
[WhiteFideId "24180327"]
[BlackFideId "4139569"]
[WhiteElo "2319"]
[BlackElo "2204"]
[Result "1-0"]
[Round "11"]
[TimeControl "180+1"]
[Date "2022.04.19"]
[WhiteClock "0:01:46"]
[BlackClock "0:00:51"]

1. e4 {[%clk 0:03:00]}  c5 {[%clk 0:03:00]} 2. Nf3 {[%clk 0:02:58]}  d6 {[%clk 0:03:00]} 3. d4 {[%clk 0:02:58]}  cxd4 {[%clk 0:03:01]} 4. Nxd4 {[%clk 0:02:59]}  Nf6 {[%clk 0:03:02]} 5. Nc3 {[%clk 0:02:59]}  a6 {[%clk 0:03:02]} 6. Bg5 {[%clk 0:02:58]}  e6 {[%clk 0:03:02]} 7. Qf3 {[%clk 0:02:56]}  Nbd7 {[%clk 0:02:59]} 8. O-O-O {[%clk 0:02:54]}  Qc7 {[%clk 0:02:58]} 9. Be2 {[%clk 0:02:52]}  b5 {[%clk 0:02:56]} 10. a3 {[%clk 0:02:45]}  Bb7 {[%clk 0:02:56]} 11. Rhe1 {[%clk 0:02:43]}  Be7 {[%clk 0:02:51]} 12. Qh3 {[%clk 0:02:24]}  O-O {[%clk 0:02:35]} 13. f4 {[%clk 0:02:22]}  Rac8 {[%clk 0:02:29]} 14. Bd3 {[%clk 0:02:17]}  e5 {[%clk 0:01:46]} 15. Nd5 {[%clk 0:02:01]}  Bxd5 {[%clk 0:01:26]} 16. exd5 {[%clk 0:02:01]}  h6 {[%clk 0:01:26]} 17. Nf5 {[%clk 0:01:48]}  Rfe8 {[%clk 0:01:15]} 18. Bxh6 {[%clk 0:01:47]}  gxh6 {[%clk 0:00:51]} 19. Qg3+ {[%clk 0:01:46]} 1-0


[Site "https://www.chess.com"]

[Event "Titled Tuesday Blitz April 19 Early 2022"]
[White "Yurovskykh, Oleksandr"]
[Black "Bilych, Olexiy"]
[WhiteFideId "14134020"]
[BlackFideId "14156504"]
[WhiteElo "2610"]
[BlackElo "2704"]
[Result "0-1"]
[Round "11"]
[TimeControl "180+1"]
[Date "2022.04.19"]
[WhiteClock "0:00:06"]
[BlackClock "0:00:22"]

1. d4 {[%clk 0:02:53]}  d5 {[%clk 0:03:00]} 2. Bf4 {[%clk 0:02:51]}  c5 {[%clk 0:03:00]} 3. e3 {[%clk 0:02:52]}  Nc6 {[%clk 0:03:00]} 4. c3 {[%clk 0:02:52]}  Qb6 {[%clk 0:03:00]} 5. Qb3 {[%clk 0:02:52]}  c4 {[%clk 0:03:01]} 6. Qc2 {[%clk 0:02:52]}  Bf5 {[%clk 0:03:01]} 7. Qxf5 {[%clk 0:02:47]}  Qxb2 {[%clk 0:03:01]} 8. Qxd5 {[%clk 0:02:47]}  Qxa1 {[%clk 0:02:59]} 9. Qb5 {[%clk 0:02:47]}  O-O-O {[%clk 0:02:28]} 10. Bxc4 {[%clk 0:02:44]}  e5 {[%clk 0:02:25]} 11. Ne2 {[%clk 0:02:39]}  exf4 {[%clk 0:01:36]} 12. O-O {[%clk 0:02:37]}  Bb4 {[%clk 0:01:13]} 13. cxb4 {[%clk 0:02:16]}  Qb2 {[%clk 0:01:13]} 14. Qf5+ {[%clk 0:01:57]}  Kb8 {[%clk 0:01:12]} 15. Qxf4+ {[%clk 0:01:55]}  Ka8 {[%clk 0:01:11]} 16. b5 {[%clk 0:01:50]}  Na5 {[%clk 0:01:06]} 17. Bd3 {[%clk 0:01:36]}  Qxa2 {[%clk 0:01:06]} 18. Nbc3 {[%clk 0:01:34]}  Qe6 {[%clk 0:01:06]} 19. Ra1 {[%clk 0:01:13]}  Nc4 {[%clk 0:00:51]} 20. Qc7 {[%clk 0:01:00]}  Rc8 {[%clk 0:00:48]} 21. Bxc4 {[%clk 0:00:57]}  Rxc7 {[%clk 0:00:39]} 22. Bxe6 {[%clk 0:00:56]}  fxe6 {[%clk 0:00:40]} 23. b6 {[%clk 0:00:55]}  Rc6 {[%clk 0:00:40]} 24. bxa7 {[%clk 0:00:46]}  Nf6 {[%clk 0:00:40]} 25. e4 {[%clk 0:00:40]}  Rhc8 {[%clk 0:00:39]} 26. Ra3 {[%clk 0:00:20]}  Nxe4 {[%clk 0:00:39]} 27. Nd1 {[%clk 0:00:08]}  Ra6 {[%clk 0:00:25]} 28. Re3 {[%clk 0:00:06]}  Ra1 {[%clk 0:00:24]} 29. h4 {[%clk 0:00:05]}  Rxd1+ {[%clk 0:00:24]} 30. Kh2 {[%clk 0:00:06]}  Nf6 {[%clk 0:00:24]} 31. Rxe6 {[%clk 0:00:06]}  Kxa7 {[%clk 0:00:23]} 32. Re7 {[%clk 0:00:06]}  Re1 {[%clk 0:00:22]} 0-1


[Site "https://www.chess.com"]

[Event "Titled Tuesday Blitz April 19 Early 2022"]
[White "Zemlyanskii, Ivan"]
[Black "Aroesti, Roee"]
[WhiteFideId "24249971"]
[BlackFideId "2817144"]
[WhiteElo "2756"]
[BlackElo "2599"]
[Result "1-0"]
[Round "11"]
[TimeControl "180+1"]
[Date "2022.04.19"]
[WhiteClock "0:00:49"]
[BlackClock "0:00:12"]

1. c4 {[%clk 0:03:00]}  g6 {[%clk 0:02:59]} 2. g3 {[%clk 0:03:00]}  Bg7 {[%clk 0:02:59]} 3. Bg2 {[%clk 0:03:01]}  e5 {[%clk 0:02:59]} 4. Nc3 {[%clk 0:02:59]}  Ne7 {[%clk 0:02:59]} 5. Nf3 {[%clk 0:02:55]}  Nbc6 {[%clk 0:02:59]} 6. O-O {[%clk 0:02:54]}  O-O {[%clk 0:02:58]} 7. d3 {[%clk 0:02:52]}  d6 {[%clk 0:02:58]} 8. Be3 {[%clk 0:02:43]}  h6 {[%clk 0:02:55]} 9. Rc1 {[%clk 0:02:32]}  f5 {[%clk 0:02:50]} 10. Nd5 {[%clk 0:02:28]}  Nxd5 {[%clk 0:02:44]} 11. cxd5 {[%clk 0:02:28]}  Ne7 {[%clk 0:02:45]} 12. Qb3 {[%clk 0:02:27]}  f4 {[%clk 0:02:40]} 13. Bd2 {[%clk 0:02:26]}  Rf7 {[%clk 0:02:40]} 14. Qc4 {[%clk 0:02:20]}  c6 {[%clk 0:02:32]} 15. dxc6 {[%clk 0:02:14]}  bxc6 {[%clk 0:02:33]} 16. gxf4 {[%clk 0:02:09]}  d5 {[%clk 0:02:27]} 17. Qc5 {[%clk 0:02:04]}  e4 {[%clk 0:02:20]} 18. Ne5 {[%clk 0:01:55]}  exd3 {[%clk 0:02:07]} 19. Nxf7 {[%clk 0:01:40]}  Kxf7 {[%clk 0:02:08]} 20. exd3 {[%clk 0:01:36]}  Bf5 {[%clk 0:02:05]} 21. Rfe1 {[%clk 0:01:35]}  Bf8 {[%clk 0:02:01]} 22. Bb4 {[%clk 0:01:28]}  Rc8 {[%clk 0:01:54]} 23. Qxa7 {[%clk 0:01:22]}  Rc7 {[%clk 0:01:48]} 24. Qb6 {[%clk 0:01:14]}  Nc8 {[%clk 0:01:33]} 25. Qa5 {[%clk 0:01:13]}  Nd6 {[%clk 0:01:18]} 26. Rxc6 {[%clk 0:01:09]}  Rd7 {[%clk 0:00:29]} 27. Bxd5+ {[%clk 0:01:03]}  Kg7 {[%clk 0:00:26]} 28. Qxd8 {[%clk 0:00:52]}  Rxd8 {[%clk 0:00:27]} 29. Rc7+ {[%clk 0:00:53]}  Kh8 {[%clk 0:00:16]} 30. Bc3+ {[%clk 0:00:52]}  Bg7 {[%clk 0:00:16]} 31. Rxg7 {[%clk 0:00:51]}  Rd7 {[%clk 0:00:12]} 32. Rxd7# {[%clk 0:00:49]} 1-0


[Site "https://www.chess.com"]